Cogmind - Beta 9.6 @@@ ROGUE MODE // 2020.09.07 @ 21:38:38 Player: MTF Result: Destroyed by as-70341 with Assembled Blade Performance ------------- Evolutions (0) 0 Regions Visited (0) 0 Robots Destroyed (5) 25 Value Destroyed (0) 0 Prototype IDs (0) 0 Alien Tech Used (0) 0 Bonus (0) 0 TOTAL SCORE: 25 Bonus ------- None Cogmind --------- Core Integrity 0/250 Matter 300/300 Energy 100/100 System Corruption 2% Temperature Cool (0) Movement Walking (120) Location -11/Scrapyard Parts ------- > --- POWER (1) -------- (None) > --- PROPULSION (2) --- Aluminum Leg Aluminum Leg > --- UTILITY (2) ------ Small Storage Unit > --- WEAPON (2) ------- (None) > --- INVENTORY (6) ---- Wheel Compact Wheel Peak State ------------ > --- POWER ------------ Light Ion Engine > --- PROPULSION ------- Aluminum Leg Aluminum Leg > --- UTILITY ---------- Small Storage Unit > --- WEAPON ----------- Small Laser Assault Rifle > --- INVENTORY -------- Light Ion Engine Light Treads Light Treads Wheel Compact Wheel EM Pulse Gun [Rating: 6] Favorites ----------- Power Light Ion Engine Engine Light Ion Engine Propulsion Light Treads Treads Light Treads Leg Aluminum Leg Utility Small Storage Unit Storage Small Storage Unit Weapon Assault Rifle Energy Gun EM Pulse Gun Ballistic Gun Assault Rifle Special Weapon Mining Laser Build | -11 ------- Run | Scr Slots Evolved . | . Power . | . Propulsion . | . Utility . | . Weapon . | . Parts Attached 8 | 8 Power 1 | 1 Engine 1 | 1 Core . | . Reactor . | . Propulsion 4 | 4 Treads 2 | 2 Leg 2 | 2 Wheel . | . Hover . | . Flight . | . Utility . | . Device . | . Storage . | . Processor . | . Hackware . | . Protection . | . Artifact . | . Weapon 3 | 3 Energy Gun 2 | 2 Energy Cannon . | . Ballistic Gun . | . Ballistic Cannon . | . Launcher . | . Special Weapon 1 | 1 Impact Weapon . | . Slashing Weapon . | . Piercing Weapon . | . Special Melee Weapon . | . Unidentified Prototypes . | . Parts Lost 8 | 8 Power 2 | 2 Propulsion 2 | 2 Utility . | . Weapon 4 | 4 Highest Loss Streak 8 | 8 Average Slot Usage (%) . | . Naked Turns . | . Heaviest Build 11 | 11 Greatest Support 40 | 40 Greatest Overweight (x) . | . Average Overweight (x) . | . Largest Inventory Capacity 6 | 6 Average Capacity 6 | 6 Most Carried 6 | 6 Average Carried 5 | 5 Final Capacity 6 | 6 Final Carried 2 | 2 Class Distribution -------------------- None Dominant Class ---------------- None Resources | -11 ----------- Run | Scr Matter Collected 276 | 276 Remotely . | . Salvage Created 65 | 65 Parts . | . Haulers Intercepted . | . Recyclers Shooed . | . Parts Field Recycled . | . Retrieved Matter . | . Parts Self-Destructed . | . Prevented . | . Kills | -11 ------- Run | Scr Combat Hostiles Destroyed 5 | 5 Melee 2 | 2 Guns 3 | 3 Classes Destroyed 1 | 1 Assembled 5 | 5 Best Kill Streak 5 | 5 Combat Bots Only 5 | 5 Max Kills in Single Turn 1 | 1 Gunslinging . | . Exploded . | . Melee 1 | 1 Uniques/NPCs Destroyed . | . Combat | -11 -------- Run | Scr Damage Taken 1073 | 1073 Core 264 | 264 Absorbed by Shields . | . Core Remaining (%) . | . Volleys Fired 13 | 13 Largest 2 | 2 Hottest 100 | 100 Shots Fired 22 | 22 Gun 21 | 21 Cannon . | . Launcher . | . Special 1 | 1 Kinetic 12 | 12 Thermal 3 | 3 Explosive . | . Electromagnetic 7 | 7 Robot Hit Streak 4 | 4 Robot Miss Streak 5 | 5 Penetration Max . | . Secondary Targets 2 | 2 Max Gunslinging Chain 1 | 1 Shots Hit Robots 12 | 12 Core Hits 10 | 10 Critical Hits . | . Critical Kills . | . Critical Parts Destroyed . | . Melee Attacks . | . Impact . | . Slashing . | . Piercing . | . Sneak Attacks . | . Combat Hostiles . | . Follow-up Attacks . | . Damage Inflicted 168 | 168 Guns 134 | 134 Cannons . | . Explosions . | . Melee . | . Ramming 10 | 10 Kinetic 80 | 80 Thermal 34 | 34 Explosive . | . Electromagnetic 44 | 44 Impact . | . Slashing . | . Piercing . | . Highest Corruption 2 | 2 Average Corruption 2 | 2 Corruption Purged . | . Effects 1 | 1 Heat Flow Errors 1 | 1 Overload Shots . | . Overflow Damage . | . Projectiles . | . Explosions . | . Melee . | . Knockbacks . | . Impact . | . Kinetic . | . Secondary . | . Self-Inflicted Damage 1 | 1 Shots . | . Rammed 8 | 8 Targets Rammed 10 | 10 Kicked . | . Crushed 2 | 2 Highest Temperature 224 | 224 Average Temperature 86 | 86 Received Heat Transfer . | . Siege Activations . | . Robots Corrupted . | . Combat Hostiles . | . Parts Fried . | . Impact Corruptions . | . Robots Melted . | . Combat Hostiles . | . Parts Melted . | . Heat Transferred 75 | 75 Parts Sabotaged . | . Parts Stolen . | . Parts Stripped . | . Power Chain Reactions . | . Missiles Intercepted . | . Alert | -11 ------- Run | Scr Peak Influence 15 | 15 Average Influence . | . Maximum Alert Level . | . Low Security (%) 100 | 100 Level 1 . | . Level 2 . | . Level 3 . | . Level 4 . | . Level 5 . | . High Security . | . Max Security . | . Squads Dispatched . | . Investigation . | . Extermination . | . Reinforcement . | . Assault . | . Garrison . | . Intercept . | . Construction Impeded . | . Haulers Reinforced . | . Stealth | -11 --------- Run | Scr Distress Signals . | . Communications Jammed . | . Distress Signals . | . Times Spotted 10 | 10 Peak Tracking Total 4 | 4 Tactical Retreats . | . Traps | -11 ------- Run | Scr Traps Triggered . | . Indirectly . | . Trap Hack Attempts . | . Triggered . | . Disarmed . | . Reprogrammed . | . Reused . | . Traps Extracted . | . Installed . | . Triggered . | . Machines | -11 ---------- Run | Scr Machines Disabled . | . Max in Single Turn . | . Machines Sabotaged . | . Garrisons Compromised . | . Overloaded Fab Kills . | . Fab Network Shutdowns . | . Hacking | -11 --------- Run | Scr Machines Accessed . | . Terminals . | . Fabricators . | . Repair Stations . | . Recycling Units . | . Scanalyzers . | . Garrison Access . | . Total Hacks . | . Successful . | . Failed . | . Catastrophic . | . Database Lockouts . | . Manual . | . Terminals . | . Fabricators . | . Repair Stations . | . Recycling Units . | . Scanalyzers . | . Garrison Access . | . Terminal Hacks . | . Fabricator Hacks . | . Repair Station Hacks . | . Recycling Unit Hacks . | . Scanalyzer . | . Garrison Access Hacks . | . Unauthorized Hacks . | . Terminals . | . Fabricators . | . Repair Stations . | . Recycling Units . | . Scanalyzers . | . Garrison Access . | . Data Cores Recovered . | . Used . | . Hacking Detections . | . Full Trace Events . | . Feedback Events . | . Feedback Blocked . | . Robot Schematics Acquired . | . Robots Built . | . Matter . | . Time . | . Total Robot Build Rating . | . Part Schematics Acquired . | . Parts Built . | . Matter . | . Time . | . Total Part Build Rating . | . Parts Repaired . | . Time . | . Parts Recycled . | . Recycled Matter . | . Retrieved Matter . | . Retrieved Components . | . Parts Scanalyzed . | . Part Schematics Acquired . | . Parts Damaged . | . Bothacking | -11 ------------ Run | Scr Used RIF Installer . | . Robots Hacked . | . Non-combat . | . Combat . | . Robot Hacks Applied . | . Relay Couplers Released . | . Robots Rewired . | . Allies Hacked . | . Hacks Repelled . | . Allies | -11 -------- Run | Scr Total Allies . | . Largest Group . | . Highest-Rated Group . | . Highest-Rated Ally . | . Total Orders . | . Ally Attacks . | . Total Damage . | . Kills . | . Allies Corrupted . | . Allies Melted . | . Intel | -11 ------- Run | Scr Robot Analysis Total . | . Derelict Logs Recovered . | . Drone Launches . | . Drone Recoveries . | . Exploration | -11 ------------- Run | Scr Turns Passed 3168 | 3168 Spaces Moved 223 | 223 Core . | . Treads 209 | 209 Legs 14 | 14 Wheels . | . Hover . | . Flight . | . Fastest Speed 120 | 120 Average Speed 157 | 157 Slowest Speed 160 | 160 Overloaded Moves . | . Propulsion Burnouts . | . Robots Hopped . | . Cave-ins Triggered . | . Exploration Rate (%) 48 | 48 Regions Visited . Branch Regions . Pre-discovered Areas . | . Known Exits Taken . | . Unknown Exits Taken . | . Scrap Searched . | . Spaces Dug . | . Terrain Destroyed . | . Melee . | . Projectile . | . AOE . | . Actions | -11 --------- Run | Scr Total 3008 | 3008 Wait 2754 | 2754 Move 223 | 223 Hop . | . Pick Up . | . Fast Attach 1 | 1 Attach 4 | 4 Detach . | . Swap 3 | 3 Drop . | . Fire 13 | 13 Melee . | . Ram . | . Kick 1 | 1 Crush 9 | 9 Escape Stasis . | . Rewire . | . Trap . | . Miscellaneous . | . Route ------- -11/Scrapyard (discovered 1 exit: [*Mat]) History --------- Turn | Location | Event 1 | -11/Scrapyard | Discovered new exit (range 2) 3010 | -11/Scrapyard | Assembled infested the area 3139 | -11/Scrapyard | Core integrity fell below 50% 3166 | -11/Scrapyard | Core integrity fell below 20% 3169 | -11/Scrapyard | Destroyed by as-70341 with Assembled Blade Last Messages --------------- 03130_ Acquired 16 matter. 03131_ Slammed into as-89066. 03132_ T-07 Excavator suffers critical hit. 03133_ Slammed into as-89066. 03134_ Acquired 5 matter. 03134_ Slammed into as-89066. 03136_ T-07 Excavator destroyed. 03136_ Slammed into as-89066. 03138_ System corrupted: Heat flow error (+244). 03139_ Crushed as-89066. 03139_ as-89066 destroyed. 03145_ Lgt. Treads destroyed. 03147_ Slammed into as-40239. 03147_ Lgt. Treads destroyed. 03151_ K-01 Serf collects debris. 03152_ Acquired Mining Laser. 03157_ Mining Laser destroyed. 03157_ Acquired 25 matter. 03162_ Slammed into as-81411. 03166_ Lgt. Ion Engine destroyed. Map ----- +----------------------------------------------------+ | ???????????????# #??????????# | | ???????????????# # #??????????# | | ???????????????################### #??????????# | | ?????????????????????????????????# ####??????????# | | ?????????????????????##??????????# #???###???????# | | ?????????????????????# ######## #?? ###?????# | | ?????????????????????# #? #?????# | | ?????????????????????# # #?????# | | ?????????????????????# ####### # #?##### | | ??????????????????????#?????????# #?# | | ??????????????????????# #####???# ########### | | ??????????????????????# ??# #? # | | ??????????????????????# ?# # # | | ??????????????????????# ?# # # | | ??????????????????????# # ##### | | ??????????????????????# # # # | | ??????????????????????# # | | ??????????????????????# # # # ## | | ??????????????????????# # # # ## | | ??????????????????????########### ########### ## | | ????????????????#########????# #??????# ## | | ????????????????# ????# % |*#?????## ## | | ????????????????# ????# %%%% =%####### # | | ?????????????#### |##### %% ! !%* # | | ?????????? % a % !%* a% =! # | | ?????????? a @aa %* ####### # | | ????????????????# #####% < #?###### ### | | ????????????????# =% ????# % #?# | | ????????????????# |?????##########?# | | ????????????????#### ##????????????????# | | ???????????????????# ??????????????????# | | ???????????????????# ???????????????????# | | ???????????????????#????????????????????########## | | ?????????????????????????????????????????????????? | | ?????????????????????????????????????????????????? | | ?????????????????????????????????????????????????? | | ?????????????????????????????????????????????????? | | ?????????????????????????????????????????????????? | | ?????????????????????????????????????????????????? | | ?????????????????????????????????????????????????? | | ?????????????????????????????????????????????????? | | ?????????????????????????????????????????????????? | | ?????????????????????????????????????????????????? | | ?????????????????????????????????????????????????? | | ?????????????????????????????????????????????????? | | ?????????????????????????????????????????????????? | | ?????????????????????????????????????????????????? | | ?????????????????????????????????????????????????? | | ?????????????????????????????????????????????????? | | ?????????????????????????????????????????????????? | +----------------------------------------------------+ Best States ------------- Heat Dissipation 25 Energy Generation 10 Energy Capacity 125 Matter Stores 300 Matter Capacity 300 Sight Range 16 Terrain Scan Density 10 Evasion (%) 40 Recoil Reduction 2 Item Schematics ----------------- None Robot Schematics ------------------ None Fabricated ------------ Nothing Alien Tech Used ----------------- None Achievements -------------- None Challenges ------------ None Game ------ Seed BarrageRiotChainsword Manual? 0 Play Time 00:07:28 Cumulative 813.7 hours Start 2020.09.07 @ 21:35:02 End 2020.09.07 @ 21:38:38 Sessions 0 Manual Loads 0 Difficulty Rogue Special Mode None Game No. 308 Rogue 308 Adventurer 0 Explorer 0 Win Type - Total 41 Types 9/12/8/3/1/1/7 Lore% 97 Gallery% 95 Achievement% 82 Wizard Run 0 Options --------- ASCII 0 Keyboard 0 Movement Numpad Keybinds 0 Fullscreen 2 Font 24/Smallcaps Map View 76x50 Tactical HUD 1 Map Filters NONE Filters NONE Steam 1 RUN: 5bab97b0-9947-4e6d-95c1-78255a7a4c3a